fUSD/lending_fUSD_20240319
["ID","MTS","AMOUNT","RATE_DAILY","PERIOD"]
[319601817,1710885150139,-814.62,0.0003315,5]
[319601818,1710885150149,-500.0,0.0003315,5]
[319601819,1710885150158,-2550.99,0.0003315,5]
[319601820,1710885150168,-1149.73,0.0003315,5]
[319601821,1710885150177,-7487.75,0.0003315,5]
[319601822,1710885150187,-1638.18,0.0003315,5]
[319601823,1710885150197,-7814.4,0.0003315,5]
[319601824,1710885150207,-529.96,0.0003315,5]
[319601825,1710885150217,-705.8,0.0003315,5]
[319601826,1710885150227,-594.04,0.0003315,5]
[319601827,1710885150237,-500.0,0.0003315,5]
[319601828,1710885150246,-500.0,0.0003315,5]
[319601829,1710885150256,-500.0,0.0003315,5]
[319601830,1710885150266,-500.0,0.0003315,5]
[319601831,1710885150275,-3016.27,0.0003315,5]
[319601832,1710885150285,-500.0,0.0003315,5]
[319601833,1710885150296,-38480.53,0.0003315,5]
[319601834,1710885150305,-2988.01,0.0003315,5]
[319601835,1710885150315,-968.19,0.0003315,5]
[319601836,1710885150325,-767.81,0.0003315,5]
[319601837,1710885150335,-3358.0,0.0003315,5]
[319601838,1710885150345,-500.0,0.0003315,5]
[319601839,1710885150354,-500.0,0.0003315,5]
[319601840,1710885150364,-2995.65,0.0003315,5]
[319601841,1710885150373,-2879.31,0.0003315,5]
[319601842,1710885150383,-3475.26,0.0003315,5]
[319601843,1710885150394,-817.64,0.0003315,5]
[319601844,1710885150404,-626.59,0.0003315,5]
[319601845,1710885150413,-1532.23,0.0003315,5]
[319601846,1710885150423,-500.0,0.0003315,5]
[319601847,1710885150432,-1675.59,0.0003315,5]
[319601848,1710885150442,-1175.56,0.0003315,5]
[319601849,1710885150452,-1109.08,0.0003315,5]
[319601850,1710885150462,-1104.88,0.0003315,5]
[319601851,1710885150473,-1008.18,0.0003315,5]
[319601852,1710885150484,-2383.57,0.0003315,5]
[319601853,1710885150494,-6551.95,0.0003315,5]
[319601854,1710885150503,-20378.39,0.0003315,5]
[319601855,1710885150513,-3428.01,0.0003315,5]
[319601856,1710885150522,-533.20346555,0.0003315,5]
[319601857,1710885150532,-500.0,0.0003315,5]
[319601858,1710885150542,-724.41,0.0003315,5]
[319601859,1710885150554,-2691.76,0.0003315,5]
[319601860,1710885150564,-4023.07,0.0003315,5]
[319601861,1710885150574,-500.0,0.0003315,5]
[319601862,1710885150584,-518.98,0.0003315,5]
[319601863,1710885150594,-532.04,0.0003315,5]
[319601864,1710885150603,-500.0,0.0003315,5]
[319601865,1710885150613,-3655.41,0.0003315,5]
[319601866,1710885150623,-3100.4,0.0003315,5]
[319601867,1710885150632,-532.61,0.0003315,5]
[319601868,1710885150643,-1495.58,0.0003315,5]
[319601869,1710885150652,-5255.9,0.0003315,5]
[319601870,1710885150662,-646.23,0.0003315,5]
[319601871,1710885150672,-500.0,0.0003315,5]
[319601872,1710885150681,-856.3,0.0003315,5]
[319601873,1710885150690,-1919.76,0.0003315,5]
[319601874,1710885150700,-2848.19,0.0003315,5]
[319601875,1710885150709,-500.0,0.0003315,5]
[319601876,1710885150718,-514.35,0.0003315,5]
[319601877,1710885150728,-84885.72,0.0003315,5]
[319601878,1710885150737,-7528.25,0.0003315,5]
[319601879,1710885150747,-917.99,0.0003315,5]
[319601880,1710885150756,-2075.6,0.0003315,5]
[319601881,1710885150766,-556.06,0.0003315,5]
[319601882,1710885150775,-4053.66,0.0003315,5]
[319601883,1710885150784,-500.0,0.0003315,5]
[319601884,1710885150794,-950.92,0.0003315,5]
[319601885,1710885150803,-1498.56,0.0003315,5]
[319601886,1710885150812,-6114.82,0.0003315,5]
[319601887,1710885150823,-1068.02,0.0003315,5]
[319601888,1710885150833,-1140.75,0.0003315,5]
[319601889,1710885150843,-1363.9,0.0003315,5]
[319601890,1710885150853,-500.0,0.0003315,5]
[319601891,1710885150864,-680.37,0.0003315,5]
[319601892,1710885150874,-7331.78,0.0003315,5]
[319601893,1710885150885,-6608.67,0.0003315,5]
[319601894,1710885150898,-5255.76,0.0003315,5]
[319601895,1710885150908,-1065.89,0.0003315,5]
[319601896,1710885150918,-535.13,0.0003315,5]
[319601897,1710885150929,-2244.41,0.0003315,5]
[319601898,1710885150939,-1134.2,0.0003315,5]
[319601899,1710885150949,-12679.11,0.0003315,5]
[319601900,1710885150959,-501.67,0.0003315,5]
[319601901,1710885150970,-500.0,0.0003315,5]
[319601902,1710885150980,-500.0,0.0003315,5]
[319601903,1710885150990,-500.0,0.0003315,5]
[319601904,1710885151000,-952.29,0.0003315,5]
[319601905,1710885151010,-16057.66,0.0003315,5]
[319601906,1710885151020,-5689.03,0.0003315,5]
[319601907,1710885151030,-9318.38,0.0003315,5]
[319601908,1710885151040,-661.71,0.0003315,5]
[319601909,1710885151050,-6799.03,0.0003315,5]
[319601910,1710885151060,-4026.73,0.0003315,5]
[319601911,1710885151071,-3035.5,0.0003315,5]
[319601912,1710885151080,-3750.07,0.0003315,5]
[319601913,1710885151091,-935.16,0.0003315,5]
[319601914,1710885151101,-6185.77,0.0003315,5]
[319601915,1710885151110,-1750.15,0.0003315,5]
[319601916,1710885151120,-507.49,0.0003315,5]
[319601917,1710885151130,-21984.05,0.0003315,5]
[319601918,1710885151140,-500.0,0.0003315,5]
[319601919,1710885151149,-1656.75,0.0003315,5]
[319601920,1710885151159,-682.19,0.0003315,5]
[319601921,1710885151169,-3232.39,0.0003315,5]
[319601922,1710885151179,-2644.39,0.0003315,5]
[319601923,1710885151189,-4012.77,0.0003315,5]
[319601924,1710885151200,-500.0,0.0003315,5]
[319601925,1710885151211,-5906.29,0.0003315,5]
[319601926,1710885151221,-500.0,0.0003315,5]
[319601927,1710885151231,-500.0,0.0003315,5]
[319601928,1710885151242,-1898.34,0.0003315,5]
[319601929,1710885151252,-6356.12,0.0003315,5]
[319601930,1710885151263,-860.9,0.0003315,5]
[319601931,1710885151273,-2450.74,0.0003315,5]
[319601932,1710885151283,-741.49,0.0003315,5]
[319601933,1710885151294,-988.62,0.0003315,5]
[319601934,1710885151304,-566.43821241,0.0003315,5]
[319601935,1710885151314,-502.93,0.0003315,5]
[319601936,1710885151324,-3281.78,0.0003315,5]
[319601937,1710885151334,-10393.93,0.0003315,5]
[319601938,1710885151344,-887.69,0.0003315,5]
[319601939,1710885151354,-2054.31,0.0003315,5]
[319601940,1710885151364,-1073.2,0.0003315,5]
[319601941,1710885151374,-500.0,0.0003315,5]
[319601942,1710885151385,-5676.82,0.0003315,5]
[319601943,1710885151395,-500.0,0.0003315,5]
[319601944,1710885151405,-2336.1,0.0003315,5]
[319601945,1710885151415,-784.81,0.0003315,5]
[319601946,1710885151425,-500.0,0.0003315,5]
[319601947,1710885151434,-2928.09,0.0003315,5]
[319601948,1710885151444,-958.78,0.0003315,5]
[319601949,1710885151455,-12462.52,0.0003315,5]
[319601950,1710885151465,-5305.03,0.0003315,5]
[319601951,1710885151479,-742.85,0.0003315,5]
[319601952,1710885151490,-6273.21,0.0003315,5]
[319601953,1710885151500,-500.0,0.0003315,5]
[319601954,1710885151510,-500.0,0.0003315,5]
[319601955,1710885151520,-3248.64,0.0003315,5]
[319601956,1710885151529,-8000.71,0.0003315,5]
[319601957,1710885151539,-7424.85,0.0003315,5]
[319601958,1710885151550,-9028.78,0.0003315,5]
[319601959,1710885151561,-7152.27,0.0003315,5]
[319601960,1710885151572,-603.25,0.0003315,5]
[319601961,1710885151581,-11402.88,0.0003315,5]
[319601962,1710885151591,-920.58,0.0003315,5]
[319601963,1710885151601,-862.02,0.0003315,5]
[319601964,1710885151610,-5180.59,0.0003315,5]
[319601965,1710885151620,-1058.28,0.0003315,5]
[319601966,1710885151630,-6676.62,0.0003315,5]
[319601967,1710885151641,-50748.97,0.0003315,5]
[319601968,1710885151651,-12563.76,0.0003315,5]
[319601969,1710885151661,-4392.06,0.0003315,5]
[319601970,1710885151670,-500.0,0.0003315,5]
[319601971,1710885151680,-500.0,0.0003315,5]
[319601972,1710885151690,-947.45,0.0003315,5]
[319601973,1710885151700,-994.47,0.0003315,5]
[319601974,1710885151710,-1127.56,0.0003315,5]
[319601975,1710885151720,-6289.47,0.0003315,5]
[319601976,1710885151730,-500.0,0.0003315,5]
[319601977,1710885151740,-1554.32,0.0003315,5]
[319601978,1710885151750,-1563.9,0.0003315,5]
[319601979,1710885151760,-2538.59,0.0003315,5]
[319601980,1710885151769,-9279.39,0.0003315,5]
[319601981,1710885151780,-2973.35,0.0003315,5]
[319601982,1710885151791,-1071.73,0.0003315,5]
[319601983,1710885151801,-1557.91,0.0003315,5]
[319601984,1710885151811,-500.0,0.0003315,5]
[319601985,1710885151821,-921.84,0.0003315,5]
[319601986,1710885151831,-1497.67,0.0003315,5]
[319601987,1710885151842,-5460.3,0.0003315,5]
[319601988,1710885151852,-500.0,0.0003315,5]
[319601989,1710885151862,-549.68,0.0003315,5]
[319601990,1710885151872,-500.0,0.0003315,5]
[319601991,1710885151882,-866.95,0.0003315,5]
[319601992,1710885151892,-23885.26,0.0003315,5]
[319601993,1710885151901,-34338.3,0.0003315,5]
[319601994,1710885151911,-6038.59,0.0003315,5]
[319601995,1710885151921,-2241.19,0.0003315,5]
[319601996,1710885151930,-870.15,0.0003315,5]
[319601997,1710885151940,-1003.35,0.0003315,5]
[319601998,1710885151949,-500.0,0.0003315,5]
[319601999,1710885151959,-5507.6,0.0003315,5]
[319602000,1710885151969,-5378.59,0.0003315,5]
[319602001,1710885151979,-615.59,0.0003315,5]
[319602002,1710885151989,-500.0,0.0003315,5]
[319602003,1710885151999,-681.39,0.0003315,5]
[319602004,1710885152009,-3623.08,0.0003315,5]
[319602005,1710885152019,-659.74,0.0003315,5]
[319602006,1710885152029,-500.0,0.0003315,5]
[319602007,1710885152038,-500.0,0.0003315,5]
[319602008,1710885152048,-1648.34,0.0003315,5]
[319602009,1710885152057,-7204.29,0.0003315,5]
[319602010,1710885152068,-976.18,0.0003315,5]
[319602011,1710885152078,-1912.73,0.0003315,5]
[319602012,1710885152088,-3082.4,0.0003315,5]
[319602013,1710885152099,-2522.27,0.0003315,5]
[319602014,1710885152108,-6424.1,0.0003315,5]
[319602015,1710885152118,-5688.06,0.0003315,5]
[319602016,1710885152128,-1570.96,0.0003315,5]
[319602017,1710885152137,-500.0,0.0003315,5]
[319602018,1710885152147,-2703.38,0.0003315,5]
[319602019,1710885152156,-1409.47,0.0003315,5]
[319602020,1710885152166,-10351.23,0.0003315,5]
[319602021,1710885152175,-500.0,0.0003315,5]
[319602022,1710885152185,-723.42,0.0003315,5]
[319602023,1710885152196,-3159.85,0.0003315,5]
[319602024,1710885152206,-19207.21,0.0003315,5]
[319602025,1710885152216,-3910.17,0.0003315,5]
[319602026,1710885152227,-989.66,0.0003315,5]
[319602027,1710885152237,-500.0,0.0003315,5]
[319602028,1710885152248,-1575.99,0.0003315,5]
[319602029,1710885152258,-500.0,0.0003315,5]
[319602030,1710885152269,-2518.49,0.0003315,5]
[319602031,1710885152279,-500.0,0.0003315,5]
[319602032,1710885152288,-602.98,0.0003315,5]
[319602033,1710885152298,-2902.62,0.0003315,5]
[319602034,1710885152308,-1081.46,0.0003315,5]
[319602035,1710885152319,-996.99,0.0003315,5]
[319602036,1710885152329,-11316.17,0.0003315,5]
[319602037,1710885152339,-722.94,0.0003315,5]
[319602038,1710885152348,-21059.27,0.0003315,5]
[319602039,1710885152359,-1144.28,0.0003315,5]
[319602040,1710885152370,-500.0,0.0003315,5]
[319602041,1710885152380,-592.77,0.0003315,5]
[319602042,1710885152393,-3248.34,0.0003315,5]
[319602043,1710885152403,-611.45,0.0003315,5]
[319602044,1710885152414,-500.0,0.0003315,5]
[319602045,1710885152425,-463.34962654,0.0003315,5]
[319602046,1710885152436,-1214.02,0.0003315,5]
[319602047,1710885152446,-5044.94,0.0003315,5]
[319602048,1710885152456,-500.0,0.0003315,5]
[319602049,1710885152467,-856.7,0.0003315,5]
[319602050,1710885152482,-6225.21,0.0003315,5]
[319602051,1710885152492,-608.72,0.0003315,5]
[319602052,1710885152503,-1511.11,0.0003315,5]
[319602053,1710885152513,-500.0,0.0003315,5]
[319602054,1710885152524,-1279.36,0.0003315,5]
[319602055,1710885152535,-8737.55,0.0003315,5]
[319602056,1710885152545,-11752.03,0.0003315,5]
[319602057,1710885152556,-4482.5,0.0003315,5]
[319602058,1710885152567,-5316.22,0.0003315,5]
[319602059,1710885152577,-1788.46,0.0003315,5]
[319602060,1710885152586,-1321.67,0.0003315,5]
[319602061,1710885152596,-22991.35,0.0003315,5]
[319602062,1710885152606,-518.08,0.0003315,5]
[319602063,1710885152616,-1177.76,0.0003315,5]
[319602064,1710885152626,-505.75,0.0003315,5]
[319602065,1710885152636,-1429.54,0.0003315,5]
[319602066,1710885152647,-2886.03,0.0003315,5]
[319602067,1710885152656,-500.0,0.0003315,5]
[319602068,1710885152666,-3473.42,0.0003315,5]
[319602069,1710885152676,-20562.17,0.0003315,5]
[319602070,1710885152689,-4026.93,0.0003315,5]
[319602071,1710885152700,-500.0,0.0003315,5]
[319602072,1710885152710,-805.12,0.0003315,5]
[319602073,1710885152720,-981.11,0.0003315,5]
[319602074,1710885152730,-877.4,0.0003315,5]
[319602075,1710885152741,-354.92,0.0003315,5]
[319602076,1710885152751,-1121.88,0.0003315,5]
[319602077,1710885152762,-836.09,0.0003315,5]
[319602078,1710885152773,-12965.17,0.0003315,5]
[319602079,1710885152783,-8047.18,0.0003315,5]
[319602080,1710885152793,-4640.74,0.0003315,5]
[319602081,1710885152804,-6661.58,0.0003315,5]
[319602082,1710885152814,-720.32,0.0003315,5]
[319602083,1710885152824,-500.0,0.0003315,5]
[319602084,1710885152835,-3306.12,0.0003315,5]
[319602085,1710885152845,-1406.25,0.0003315,5]
[319602086,1710885152855,-603.58,0.0003315,5]
[319602087,1710885152865,-500.0,0.0003315,5]
[319602088,1710885152875,-1438.11,0.0003315,5]
[319602089,1710885152885,-6333.98,0.0003315,5]
[319602090,1710885152896,-26854.72,0.0003315,5]
[319602091,1710885152907,-2692.37,0.0003315,5]
[319602092,1710885152917,-614.48,0.0003315,5]
[319602093,1710885152929,-1298.71,0.0003315,5]
[319602094,1710885152939,-2847.31,0.0003315,5]
[319602095,1710885152948,-1953.31,0.0003315,5]
[319602096,1710885152959,-500.0,0.0003315,5]
[319602097,1710885152969,-521.8,0.0003315,5]
[319602098,1710885152979,-972.96,0.0003315,5]
[319602099,1710885152989,-500.0,0.0003315,5]
[319602100,1710885152999,-599.79,0.0003315,5]
[319602101,1710885153009,-1902.54,0.0003315,5]
[319602102,1710885153019,-1686.82,0.0003315,5]
[319602103,1710885153029,-673.97,0.0003315,5]
[319602104,1710885153040,-649.62,0.0003315,5]
[319602105,1710885153050,-26670.31,0.0003315,5]
[319602106,1710885153060,-5843.77,0.0003315,5]
[319602107,1710885153070,-1828.95,0.0003315,5]
[319602108,1710885153332,-691.9,0.0003315,5]
[319602109,1710885153353,-1109.32,0.0003315,5]
[319602110,1710885153364,-1199.84,0.0003315,5]
[319602111,1710885153374,-1216.0,0.0003315,5]
[319602112,1710885153383,-175.52796,0.00033151,14]
[319602113,1710885153395,-47593.63,0.000332,5]
[319602114,1710885153404,-167.0,0.00033312,2]
[319602115,1710885153414,-168.40854864,0.00033324,24]
[319602116,1710885153423,-150.0,0.00033423,2]
[319602117,1710885153433,-215.80276806,0.00033423,2]
[319602118,1710885153443,-1041.1,0.00033424,5]
[319602119,1710885153452,-905.92,0.00033424,5]
[319602120,1710885153464,-760.8,0.00033424,5]
[319602121,1710885153479,-500.0,0.00033424,5]
[319602122,1710885153488,-500.0,0.00033424,5]
[319602123,1710885153498,-918.16,0.00033424,5]
[319602124,1710885153507,-1354.5,0.00033424,5]
[319602125,1710885153518,-166.97640029,0.00033424,5]
[319602126,1710885153526,-563.69,0.00033424,5]
[319602127,1710885153535,-553.29,0.00033424,5]
[319602128,1710885153544,-500.0,0.00033424,5]
[319602129,1710885153555,-500.0,0.00033424,5]
[319602130,1710885153564,-500.0,0.00033424,5]
[319602131,1710885153573,-576.34,0.00033424,5]
[319602132,1710885153583,-500.0,0.00033424,5]
[319602133,1710885153592,-500.0,0.00033424,5]
[319602134,1710885153601,-628.41,0.00033424,5]
[319602135,1710885153610,-500.0,0.00033424,5]
[319602136,1710885153619,-500.0,0.00033424,5]
[319602137,1710885153628,-620.13,0.00033424,5]
[319602138,1710885153637,-786.01,0.00033424,5]
[319602139,1710885153648,-865.28,0.00033424,5]
[319602140,1710885153657,-564.61,0.00033424,5]
[319602141,1710885153667,-964.89,0.00033424,5]
[319602142,1710885153676,-500.0,0.00033424,5]
[319602143,1710885153685,-500.0,0.00033424,5]
[319602144,1710885153694,-529.43,0.00033424,5]
[319602145,1710885153703,-618.58,0.00033424,5]
[319602146,1710885153712,-563.52,0.00033424,5]
[319602147,1710885153722,-2015.12,0.00033424,5]
[319602148,1710885153731,-631.9,0.00033424,5]
[319602149,1710885153740,-681.13,0.00033424,5]
[319602150,1710885153750,-1086.99,0.00033424,5]
[319602151,1710885153759,-500.0,0.00033424,5]
[319602152,1710885153769,-500.0,0.00033424,5]
[319602153,1710885153778,-500.0,0.00033424,5]
[319602154,1710885153788,-500.0,0.00033424,5]
[319602155,1710885153797,-652.31,0.00033424,5]
[319602156,1710885153806,-1320.6,0.00033424,5]
[319602157,1710885153815,-1250.92,0.00033424,5]
[319602158,1710885153824,-1120.04,0.00033424,5]
[319602159,1710885153833,-500.0,0.00033424,5]
[319602160,1710885153842,-510.25,0.00033424,5]
[319602161,1710885153851,-921.3,0.00033424,5]
[319602162,1710885153861,-1043.25,0.00033424,5]
[319602163,1710885153870,-1041.72,0.00033424,5]
[319602164,1710885153879,-500.0,0.00033424,5]
[319602165,1710885153888,-535.44,0.00033424,5]
[319602166,1710885153899,-500.0,0.00033424,5]
[319602167,1710885153908,-500.0,0.00033424,5]
[319602168,1710885153917,-500.0,0.00033424,5]
[319602169,1710885153926,-500.0,0.00033424,5]
[319602170,1710885153935,-500.0,0.00033424,5]
[319602171,1710885153944,-957.02,0.00033424,5]
[319602172,1710885153953,-549.6,0.00033424,5]
[319602173,1710885153963,-476.83362158,0.00033424,5]
[319602174,1710885153972,-500.0,0.00033424,5]
[319602175,1710885153981,-546.14,0.00033424,5]
[319602176,1710885153990,-500.0,0.00033424,5]
[319602177,1710885153999,-500.0,0.00033424,5]
[319602178,1710885154009,-431.91835831,0.00033424,5]
[319602179,1710885154018,-983.01,0.00033424,5]
[319602180,1710885154027,-502.25,0.00033424,5]
[319602181,1710885154036,-583.52,0.00033424,5]
[319602182,1710885154046,-500.0,0.00033424,5]
[319602183,1710885154055,-701.32,0.00033424,5]
[319602184,1710885154065,-845.97,0.00033424,5]
[319602185,1710885154074,-604.6,0.00033424,5]
[319602186,1710885154084,-626.44,0.00033424,5]
[319602187,1710885154093,-500.0,0.00033424,5]
[319602188,1710885154103,-1296.65,0.00033424,5]
[319602189,1710885154113,-500.0,0.00033424,5]
[319602190,1710885154123,-1134.53,0.00033424,5]
[319602191,1710885154131,-500.0,0.00033424,5]
[319602192,1710885154141,-475.23468122,0.00033424,5]
[319602193,1710885154151,-507.2,0.00033424,5]
[319602194,1710885154161,-783.57,0.00033424,5]
[319602195,1710885154171,-1022.89,0.00033424,5]
[319602196,1710885154181,-668.88,0.00033424,5]
[319602197,1710885154190,-500.0,0.00033424,5]
[319602198,1710885154199,-500.0,0.00033424,5]
[319602199,1710885154209,-597.77,0.00033424,5]
[319602200,1710885154219,-500.0,0.00033424,5]
[319602201,1710885154229,-500.0,0.00033424,5]
[319602202,1710885154239,-1578.12,0.00033424,5]
[319602203,1710885154249,-1317.95,0.00033424,5]
[319602204,1710885154259,-500.0,0.00033424,5]
[319602205,1710885154269,-706.81,0.00033424,5]
[319602206,1710885154279,-500.0,0.00033424,5]
[319602207,1710885154288,-820.72,0.00033424,5]
[319602208,1710885154297,-642.0755374,0.00033424,5]
[319602209,1710885154306,-511.35,0.00033424,5]
[319602210,1710885154315,-1159.47,0.00033424,5]
[319602211,1710885154325,-752.64,0.00033424,5]
[319602212,1710885154334,-1433.6,0.00033424,5]
[319602213,1710885154343,-500.0,0.00033424,5]
[319602214,1710885154352,-500.0,0.00033424,5]
[319602215,1710885154362,-500.0,0.00033424,5]
[319602216,1710885154372,-1189.27,0.00033424,5]
[319602217,1710885154381,-500.0,0.00033424,5]
[319602218,1710885154390,-500.0,0.00033424,5]
[319602219,1710885154400,-572.14,0.00033424,5]
[319602220,1710885154410,-1127.91,0.00033424,5]
[319602221,1710885154419,-729.46,0.00033424,5]
[319602222,1710885154429,-500.0,0.00033424,5]
[319602223,1710885154438,-500.0,0.00033424,5]
[319602224,1710885154447,-1199.62,0.00033424,5]
[319602225,1710885154456,-562.99,0.00033424,5]
[319602226,1710885154466,-786.3,0.00033424,5]
[319602227,1710885154480,-500.0,0.00033424,5]
[319602228,1710885154489,-1265.95,0.00033424,5]
[319602229,1710885154499,-580.29,0.00033424,5]
[319602230,1710885154509,-500.0,0.00033424,5]
[319602231,1710885154518,-500.0,0.00033424,5]
[319602232,1710885154528,-512.63803999,0.00033424,5]
[319602233,1710885154537,-2136.15,0.00033424,5]
[319602234,1710885154546,-718.68,0.00033424,5]
[319602235,1710885154556,-928.05,0.00033424,5]
[319602236,1710885154565,-500.0,0.00033424,5]
[319602237,1710885154575,-783.9,0.00033424,5]
[319602238,1710885154583,-1320.02,0.00033424,5]
[319602239,1710885154593,-1043.02,0.00033424,5]
[319602240,1710885154602,-802.08,0.00033424,5]
[319602241,1710885154612,-1028.49,0.00033424,5]
[319602242,1710885154620,-1179.51,0.00033424,5]
[319602243,1710885154629,-812.3,0.00033424,5]
[319602244,1710885154638,-1146.04,0.00033424,5]
[319602245,1710885154647,-500.0,0.00033424,5]
[319602246,1710885154656,-1045.71,0.00033424,5]
[319602247,1710885154665,-500.0,0.00033424,5]
[319602248,1710885154674,-530.67,0.00033424,5]
[319602249,1710885154683,-500.0,0.00033424,5]
[319602250,1710885154692,-649.64,0.00033424,5]
[319602251,1710885154702,-500.0,0.00033424,5]
[319602252,1710885154711,-500.0,0.00033424,5]
[319602253,1710885154721,-500.0,0.00033424,5]
[319602254,1710885154730,-500.0,0.00033424,5]
[319602255,1710885154739,-775.28,0.00033424,5]
[319602256,1710885154748,-897.58,0.00033424,5]
[319602257,1710885154757,-1675.73,0.00033424,5]
[319602258,1710885154765,-500.0,0.00033424,5]
[319602259,1710885154775,-937.79,0.00033424,5]
[319602260,1710885154784,-500.0,0.00033424,5]
[319602261,1710885154794,-734.15,0.00033424,5]
[319602262,1710885154802,-1431.93,0.00033424,5]
[319602263,1710885154812,-530.51,0.00033424,5]
[319602264,1710885154821,-1508.78,0.00033424,5]
[319602265,1710885154831,-500.0,0.00033424,5]
[319602266,1710885154841,-500.0,0.00033424,5]
[319602267,1710885154850,-621.71,0.00033424,5]
[319602268,1710885154860,-3024.0,0.00033424,5]
[319602269,1710885154869,-571.47,0.00033424,5]
[319602270,1710885154880,-500.0,0.00033424,5]
[319602271,1710885154889,-538.79,0.00033424,5]
[319602272,1710885154900,-762.86,0.00033424,5]
[319602273,1710885154910,-985.89,0.00033424,5]
[319602274,1710885154919,-1947.91,0.00033424,5]
[319602275,1710885154929,-863.2,0.00033424,5]
[319602276,1710885154938,-280.83280903,0.00033424,5]
[319602277,1710885154948,-538.79,0.00033424,5]
[319602278,1710885154957,-747.16,0.00033424,5]
[319602279,1710885154967,-772.61,0.00033424,5]
[319602280,1710885154976,-500.0,0.00033424,5]
[319602281,1710885154985,-500.0,0.00033424,5]
[319602282,1710885154994,-1767.34,0.00033424,5]
[319602283,1710885155003,-500.0,0.00033424,5]
[319602284,1710885155013,-1603.73,0.00033424,5]
[319602285,1710885155023,-422.68078606,0.00033424,5]
[319602286,1710885155032,-500.0,0.00033424,5]
[319602287,1710885155042,-892.48,0.00033424,5]
[319602288,1710885155051,-654.11,0.00033424,5]
[319602289,1710885155060,-1478.75,0.00033424,5]
[319602290,1710885155069,-1208.68,0.00033424,5]
[319602291,1710885155079,-1428.4,0.00033424,5]
[319602292,1710885155088,-1477.07,0.00033424,5]
[319602293,1710885155098,-526.9,0.00033424,5]
[319602294,1710885155108,-2930.57,0.00033424,5]
[319602295,1710885155118,-1084.77,0.00033424,5]
[319602296,1710885155128,-948.83,0.00033424,5]
[319602297,1710885155137,-500.0,0.00033424,5]
[319602298,1710885155149,-500.0,0.00033424,5]
[319602299,1710885155159,-1970.31,0.00033424,5]
[319602300,1710885155168,-748.56,0.00033424,5]
[319602301,1710885155178,-853.25,0.00033424,5]
[319602302,1710885155188,-1046.29,0.00033424,5]
[319602303,1710885155198,-608.95,0.00033424,5]
[319602304,1710885155208,-500.0,0.00033424,5]
[319602305,1710885155217,-636.98,0.00033424,5]
[319602306,1710885155227,-500.0,0.00033424,5]
[319602307,1710885155237,-1279.27,0.00033424,5]
[319602308,1710885155247,-1827.01,0.00033424,5]
[319602309,1710885155257,-500.0,0.00033424,5]
[319602310,1710885155267,-1006.11,0.00033424,5]
[319602311,1710885155276,-500.0,0.00033424,5]
[319602312,1710885155287,-1949.93,0.00033424,5]
[319602313,1710885155296,-1192.24,0.00033424,5]
[319602314,1710885155306,-2813.53,0.00033424,5]
[319602315,1710885155316,-845.98,0.00033424,5]
[319602316,1710885155325,-1011.35,0.00033424,5]